bitfinex-derivatives/quotes_ETHF0:USTF0_20240829
["timestamp","ask_amount","ask_price","bid_price","bid_amount"]
[1724934241646,0.38984,2564.5,2564.4,6.5778]
[1724934241846,1.72894,2564.5,2564.4,6.5778]
[1724934242139,1.72894,2564.5,2564.2,3.76]
[1724934242140,1.36455,2564.3,2564.2,3.76]
[1724934242348,1.36455,2564.3,2564.2,3.37]
[1724934242543,0.38987,2564.3,2564.2,3.37]
[1724934242840,1.36455,2564.3,2564.2,3.37]
[1724934243043,0.38987,2564.3,2564.2,3.37]
[1724934243233,1.36455,2564.3,2564.2,3.37]
[1724934243435,9.74379119,2564.3,2564.2,3.37]
[1724934244244,9.74379119,2564.3,2564.0,0.78576457]
[1724934244245,0.3899,2564.1,2564.0,0.39585457]
[1724934244439,0.7478,2564.4,2564.1,0.38989]
[1724934244440,0.38989,2564.2,2564.1,0.38989]
[1724934244640,0.38989,2564.2,2564.1,3.75989]
[1724934244843,0.38989,2564.2,2564.1,7.65989]
[1724934245247,0.38989,2564.2,2564.1,7.27]
[1724934245443,0.38989,2564.2,2564.1,7.6599]
[1724934246346,0.38989,2564.2,2564.1,7.27]
[1724934246544,1.3646,2564.2,2564.1,3.37]
[1724934246945,1.3646,2564.2,2564.0,0.00585457]
[1724934246946,0.3899,2564.1,2564.0,0.00585457]
[1724934247248,1.36465,2564.1,2564.0,0.00585457]
[1724934248142,10.64584775,2564.1,2564.0,0.00585457]
[1724934248446,5.77109775,2564.1,2564.0,0.00585457]
[1724934249039,9.67109775,2564.1,2564.0,0.00585457]
[1724934250250,10.64584775,2564.1,2564.0,0.00585457]
[1724934250449,9.67109775,2564.1,2564.0,0.00585457]
[1724934250752,6.74584775,2564.1,2564.0,0.00585457]
[1724934250951,10.64584775,2564.1,2564.0,0.00585457]
[1724934252550,18.59535775,2564.1,2564.0,0.00585457]
[1724934252753,21.13424849,2564.1,2564.0,0.00585457]
[1724934252954,2.33968,2563.8,2563.7,3.37]
[1724934253252,2.33968,2563.8,2563.6,3.502]
[1724934253253,1.36491,2563.6,2563.5,3.37]
[1724934253443,1.36491,2563.6,2563.0,7.0911]
[1724934253444,0.39002,2563.3,2563.2,3.37]
[1724934254160,1.36508,2563.3,2563.2,3.37]
[1724934255450,0.39002,2563.3,2563.2,3.37]
[1724934256250,1.36508,2563.3,2563.2,3.37]
[1724934257355,0.39002,2563.3,2563.2,3.37]
[1724934257854,1.36508,2563.3,2563.2,3.37]
[1724934258653,0.39003,2563.2,2563.1,0.3711]
[1724934258867,1.36512,2563.2,2563.1,0.3711]
[1724934259068,1.73372,2563.2,2563.1,0.3711]
[1724934264652,5.63532,2563.2,2563.1,0.3711]
[1724934264849,5.63532,2563.2,2563.0,6.58365457]
[1724934264850,1.36518,2563.1,2563.0,6.58365457]
[1724934265157,1.75078,2563.1,2563.0,3.21365457]
[1724934267356,1.75078,2563.1,2563.0,0.00585457]
[1724934267357,17.12848618,2563.1,2563.0,0.00585457]
[1724934269875,1.36539,2562.7,2562.6,0.365]
[1724934270168,4.57319,2562.7,2562.6,0.365]
[1724934270959,5.32289,2562.7,2562.6,0.365]
[1724934271159,6.29817,2562.7,2562.6,0.365]
[1724934271360,1.3655,2562.5,2562.4,0.00585457]
[1724934271559,0.39014,2562.5,2562.4,0.76611457]
[1724934274758,1.3655,2562.5,2562.4,0.37595457]
[1724934274964,1.36571,2562.1,2562.0,3.2078]
[1724934275164,0.39023,2561.9,2561.8,0.7458]
[1724934275369,1.36582,2561.9,2561.8,0.3781]
[1724934275561,2.71431,2561.9,2561.8,0.3781]
[1724934275766,0.39029,2561.5,2561.4,10.45611]
[1724934275965,0.97567,2561.7,2561.4,3.97621]
[1724934276168,0.39029,2561.6,2561.4,3.97621]
[1724934276366,0.39029,2561.5,2561.4,3.5859]
[1724934276760,0.39029,2561.5,2561.4,0.3781]
[1724934277368,0.39032,2561.3,2561.2,0.37355457]
[1724934278661,0.77322,2561.4,2561.2,0.37355457]
[1724934278876,0.39032,2561.3,2561.2,0.37355457]
[1724934279075,0.39032,2561.3,2561.2,0.00585457]
[1724934279473,0.39037,2561.0,2560.9,3.2078]
[1724934280172,8.36726729,2561.0,2560.9,3.2078]
[1724934281670,9.34319729,2561.0,2560.9,3.2078]
[1724934282072,8.36726729,2561.0,2560.9,3.2078]
[1724934283379,4.07209729,2561.0,2560.9,3.2078]
[1724934283572,2.93956747,2561.0,2560.9,17.84896]
[1724934283772,0.00585457,2561.5,2561.4,0.39031]
[1724934284076,0.00585457,2561.5,2561.4,3.76031]
[1724934284281,0.00585457,2561.5,2561.4,48.46431]
[1724934284583,0.00585457,2561.5,2561.4,48.85271]
[1724934285580,0.00585457,2561.5,2561.4,8.05271]
[1724934288670,0.00585457,2561.5,2561.4,14.05271]
[1724934288891,0.00585457,2561.5,2561.4,15.02849]
[1724934290877,0.39019,2562.2,2562.0,0.39021]
[1724934291080,0.39019,2562.2,2562.1,3.37]
[1724934291972,0.98126457,2562.4,2562.1,3.37]
[1724934291973,0.39018,2562.3,2562.1,3.37]
[1724934292177,0.00585457,2562.4,2562.2,0.39019]
[1724934292380,0.39018,2562.3,2562.1,3.37]
[1724934292574,0.00585457,2562.4,2562.3,0.39017]
[1724934293185,0.00585457,2562.4,2562.3,4.29257]
[1724934293387,0.76257,2563.0,2562.9,3.37]
[1724934293682,0.3718,2563.1,2562.9,3.37]
[1724934293883,0.3718,2563.1,2562.9,3.76008]
[1724934294687,0.3718,2563.1,2562.8,0.39009]
[1724934294988,0.3718,2563.1,2562.8,3.37]
[1724934294989,4.26425815,2563.0,2562.8,3.37]
[1724934295179,4.26425815,2563.0,2562.8,3.76009]
[1724934295582,4.26425815,2563.0,2562.8,3.37]
[1724934295788,0.39008,2562.9,2562.8,3.37]
[1724934295982,0.39007,2563.0,2562.8,3.37]
[1724934296290,4.12166925,2562.9,2562.8,3.37]
[1724934296680,0.39006,2563.1,2562.8,3.37]
[1724934296986,4.49442728,2563.0,2562.8,3.37]
[1724934297187,4.10435728,2563.0,2562.8,3.37]
[1724934297388,0.39007,2563.0,2562.8,3.37]
[1724934297588,4.49441728,2563.1,2562.8,3.37]
[1724934297889,4.18338006,2562.9,2562.8,3.37]
[1724934298092,4.18338006,2563.0,2562.8,3.7601]
[1724934298286,0.39005,2563.1,2562.8,3.7601]
[1724934298486,4.79723112,2563.1,2562.8,3.7601]
[1724934298684,3.5648,2563.2,2562.8,3.7601]
[1724934298990,3.2078,2563.2,2563.0,3.37]
[1724934299484,3.59784,2563.2,2563.0,3.37]
[1724934299686,0.39005,2563.1,2563.0,3.37]
[1724934299988,4.33190201,2563.1,2563.0,3.76006]
[1724934300292,0.39005,2563.1,2563.0,3.37]
[1724934300492,3.59784,2563.2,2563.0,3.37]
[1724934300791,3.2078,2563.2,2563.0,3.76006]
[1724934300989,3.2078,2563.2,2563.1,0.39005]
[1724934301285,0.37765457,2563.3,2563.2,0.39003]
[1724934301488,3.58545457,2563.3,2563.2,0.39003]
[1724934301690,7.94830602,2563.3,2563.1,0.39004]
[1724934301992,8.33833602,2563.3,2563.1,0.39004]
[1724934302190,0.39003,2563.2,2563.0,3.76006]
[1724934302492,4.74050602,2563.3,2563.2,0.39003]
[1724934302681,0.37765457,2563.3,2563.2,0.39003]
[1724934303793,0.00585457,2563.3,2563.2,0.39003]
[1724934304994,0.39587457,2563.3,2563.2,0.39003]
[1724934305296,0.00585457,2563.3,2563.2,0.39003]
[1724934306791,0.00585457,2563.3,2563.1,0.39004]
[1724934306991,0.39588457,2563.3,2563.0,3.7415]
[1724934307493,0.39588457,2563.3,2563.2,0.39003]
[1724934308889,0.39588457,2563.3,2563.0,3.37]
[1724934308890,0.39005,2563.1,2563.0,3.37]
[1724934309085,0.97513,2563.1,2562.9,3.2078]
[1724934309284,0.39008,2562.9,2562.8,3.37]
[1724934309891,0.39008,2562.9,2562.8,3.7601]
[1724934310197,0.39008,2562.9,2562.8,3.37]
[1724934311294,0.39008,2562.9,2562.8,3.7601]
[1724934311482,0.39011,2562.8,2562.6,7.95112]
[1724934311687,0.39011,2562.7,2562.6,7.95112]
[1724934311894,4.51054206,2562.7,2562.6,7.95112]
[1724934312692,4.51054206,2562.7,2562.6,3.76012]
[1724934313300,4.90065206,2562.7,2562.6,3.76012]
[1724934313800,4.90065206,2562.7,2562.5,3.2078]
[1724934313801,0.39013,2562.6,2562.5,3.2078]
[1724934313990,0.3711,2562.6,2562.5,3.59794]
[1724934314189,0.39013,2562.6,2562.5,3.59794]
[1724934314387,0.39013,2562.6,2562.5,3.59793]
[1724934314589,4.90066206,2562.7,2562.6,0.39013]
[1724934314891,4.90065206,2562.7,2562.6,3.76013]
[1724934315094,4.90065206,2562.7,2562.6,3.37]
[1724934315491,4.90065206,2562.7,2562.6,3.76013]
[1724934315696,4.90065206,2562.7,2562.6,3.37]
[1724934316291,5.48582206,2562.7,2562.5,3.2078]
[1724934316495,5.26785,2562.6,2562.5,3.2078]
[1724934317002,9.51596459,2562.6,2562.5,3.2078]
[1724934317798,0.39016,2562.4,2562.3,3.37]
[1724934317994,0.39016,2562.4,2562.1,0.39019]
[1724934317995,0.39019,2562.2,2562.1,3.37]
[1724934318402,1.1267,2562.3,2562.1,3.37]
[1724934318701,4.28061863,2562.2,2562.1,3.76019]
[1724934320595,4.67080863,2562.2,2562.1,3.37]
[1724934320799,4.28061863,2562.2,2561.9,3.72805457]
[1724934321001,4.28061863,2562.2,2562.1,3.7602]
[1724934321998,4.67080863,2562.2,2562.1,3.37]
[1724934323295,4.67080863,2562.2,2562.1,3.7602]
[1724934323505,4.28061863,2562.2,2562.1,3.7602]
[1724934324003,4.67080863,2562.2,2562.1,3.7602]
[1724934324395,4.67080863,2562.2,2561.9,0.35805457]
[1724934324396,0.39022,2562.0,2561.9,3.72805457]
[1724934325398,0.39022,2562.0,2561.9,4.11828457]
[1724934325999,0.39022,2562.0,2561.9,3.72805457]
[1724934326204,0.39022,2562.0,2561.9,0.00585457]
[1724934327101,1.36577,2562.0,2561.9,0.00585457]
[1724934327803,0.39022,2562.0,2561.9,0.39608457]
[1724934328105,0.39022,2562.0,2561.9,3.76608457]
[1724934328300,0.39022,2562.0,2561.9,3.37585457]
[1724934329708,5.72627681,2562.0,2561.9,0.00585457]
[1724934335108,4.75072681,2562.0,2561.9,0.39608457]
[1724934335300,0.3692,2562.3,2562.1,0.39019]
[1724934335610,4.79323609,2562.2,2562.1,0.39019]
[1724934336010,1.36571,2562.1,2562.0,0.3879]
[1724934336510,5.76875609,2562.1,2562.0,0.3879]
[1724934337205,6.15215609,2562.1,2562.0,0.3879]
[1724934337712,0.39022,2562.0,2561.9,0.00585457]
[1724934338304,0.39022,2562.0,2561.9,0.39607457]
[1724934338809,5.17665609,2562.1,2562.0,0.39022]
[1724934339010,0.39022,2562.0,2561.9,0.39607457]
[1724934341312,0.39022,2562.0,2561.9,0.00585457]
[1724934341313,1.36577,2562.0,2561.9,0.00585457]
[1724934342907,1.36577,2562.0,2561.9,0.39608457]
[1724934343315,1.36577,2562.0,2561.9,0.00585457]
[1724934344516,0.39022,2562.0,2561.9,0.39608457]
[1724934345710,0.39022,2562.0,2561.9,0.00585457]
[1724934346108,0.39022,2562.0,2561.9,0.39608457]
[1724934346711,0.39022,2562.0,2561.9,0.00585457]
[1724934346917,1.36577,2562.0,2561.9,0.00585457]
[1724934347613,1.36577,2562.0,2561.9,0.39608457]
[1724934347914,1.36577,2562.0,2561.9,0.00585457]
[1724934349811,5.82484942,2562.0,2561.9,0.00585457]
[1724934350521,1.36577,2562.0,2561.9,0.00585457]
[1724934353120,4.57357,2562.0,2561.9,0.00585457]
[1724934353421,3.59802,2562.0,2561.9,0.00585457]
[1724934354619,3.59802,2562.0,2561.9,0.39608457]
[1724934354813,3.59802,2562.0,2561.9,0.00585457]
[1724934355320,3.59802,2562.0,2561.9,0.39608457]
[1724934356420,3.59802,2562.0,2561.9,0.00585457]
[1724934356614,13.7458541,2562.0,2561.4,7.3988]
[1724934356818,0.39027,2561.7,2561.5,0.76738]
[1724934357525,0.39027,2561.7,2561.5,2.17738]
[1724934357724,0.39028,2561.6,2561.5,2.17738]
[1724934357919,0.39028,2561.6,2561.5,1.7871]
[1724934358229,0.39028,2561.6,2561.5,5.6911]
[1724934359226,0.39028,2561.6,2561.5,6.08139]
[1724934359424,0.3903,2561.7,2561.5,6.08139]
[1724934359425,0.78057,2561.7,2561.5,6.08139]
[1724934359731,0.39027,2561.7,2561.5,2.17739]
[1724934360324,0.39028,2561.6,2561.5,2.17739]
[1724934360633,0.39028,2561.6,2561.5,0.3771]
[1724934360820,0.39028,2561.6,2561.5,4.67139]
[1724934361625,0.39028,2561.6,2561.5,4.2811]
[1724934361818,2.55672866,2561.8,2561.5,5.6911]
[1724934362019,0.39025,2561.8,2561.7,0.39026]
[1724934362219,2.94697866,2561.8,2561.7,0.39026]
[1724934362626,0.39025,2561.8,2561.7,0.39026]
[1724934362827,2.55672866,2561.8,2561.7,0.39026]
[1724934363124,2.94697866,2561.8,2561.7,0.39026]
[1724934363936,0.39027,2561.7,2561.6,0.39027]
[1724934364128,2.94698866,2561.8,2561.7,0.39026]
[1724934365828,2.91638323,2561.9,2561.8,0.39025]
[1724934366221,0.00585457,2561.9,2561.8,0.39025]
[1724934366422,2.55672866,2562.1,2562.0,1.36577]
[1724934366622,2.55672866,2562.5,2562.4,0.39016]
[1724934366833,2.55672866,2562.6,2562.5,0.39014]
[1724934367124,4.07434866,2562.7,2562.6,0.39013]
[1724934367530,1.51762,2562.7,2562.6,0.39013]
[1724934367836,0.39013,2562.6,2562.5,0.74373]
[1724934368432,0.3553,2562.7,2562.6,0.39013]
[1724934368630,0.74541,2562.7,2562.6,0.39013]
[1724934369626,0.74541,2562.7,2562.5,0.74373]
[1724934370625,0.74541,2562.7,2562.2,0.39018]
[1724934370626,2.91202866,2562.7,2562.2,0.39018]
[1724934370935,4.63264915,2562.6,2562.1,6.6968]
[1724934371127,0.76325,2562.5,2562.3,0.39016]
[1724934371829,0.76325,2562.5,2562.4,0.39016]
[1724934375334,5.02278915,2562.6,2562.5,0.39014]
[1724934376132,4.27824915,2562.6,2562.5,0.39014]
[1724934376326,0.3553,2562.7,2562.6,0.39013]
[1724934377134,0.74541,2562.7,2562.6,0.39013]
[1724934378341,1.10931,2562.7,2562.6,0.39013]
[1724934379735,0.7192,2562.7,2562.6,0.39013]
[1724934379933,1.10931,2562.7,2562.6,0.39013]
[1724934381840,0.7192,2562.7,2562.6,0.39013]
[1724934382042,3.5638,2562.8,2562.6,0.39013]
[1724934382243,0.00585457,2562.9,2562.8,0.3901]
[1724934382538,0.00585457,2562.9,2562.8,1.36535]
[1724934382733,0.00585457,2562.9,2562.8,5.65395]
[1724934383634,0.00585457,2562.9,2562.8,12.6292]
[1724934384339,0.00585457,2562.9,2562.8,12.82186867]
[1724934387744,3.2078,2563.6,2563.5,0.38999]
[1724934387950,0.97472,2564.2,2563.5,0.38999]
[1724934387951,1.1206,2564.2,2563.6,0.97494]
[1724934388134,1.1206,2564.2,2563.8,3.37]
[1724934388135,1.51049,2564.2,2563.8,3.37]
[1724934388336,1.51049,2564.2,2564.1,0.3899]
[1724934388739,0.3899,2564.1,2563.8,3.37]
[1724934389244,1.51049,2564.2,2564.0,0.3899]
[1724934389444,1.51049,2564.2,2564.1,0.3899]
[1724934391238,1.1206,2564.2,2564.1,0.3899]
[1724934391549,1.1206,2564.2,2564.1,3.7599]
[1724934392049,0.3823,2564.2,2564.1,3.7599]
[1724934392951,0.3823,2564.2,2564.1,5.09335]
[1724934393350,0.3823,2564.2,2564.1,4.1186]
[1724934398952,0.3823,2564.2,2564.1,5.09335]
[1724934399455,0.00585457,2564.3,2564.2,0.38988]
[1724934399849,0.39572457,2564.3,2564.2,0.38988]
[1724934400048,0.00585457,2564.3,2564.2,0.38988]
[1724934401557,0.39572457,2564.3,2564.2,0.38988]
[1724934401754,0.38988,2564.2,2564.1,3.2078]
[1724934402251,0.38988,2564.2,2564.1,3.5977]
[1724934403254,0.97471,2564.2,2563.9,0.38992]
[1724934403456,0.3639,2564.1,2564.0,0.38991]
[1724934403754,0.3639,2564.1,2564.0,3.75991]
[1724934404359,0.7538,2564.1,2564.0,3.75991]
[1724934404555,0.38989,2564.2,2564.0,3.37]
[1724934404759,0.00585457,2564.3,2564.2,0.38988]
[1724934405958,0.00585457,2564.3,2564.2,4.28988]
[1724934406553,0.00585457,2564.3,2564.2,45.28372818]
[1724934408064,0.00585457,2564.3,2564.2,51.28372818]
[1724934410466,0.00585457,2564.3,2564.2,45.08988]
[1724934411464,0.00585457,2564.3,2564.2,0.38988]
[1724934411762,0.00585457,2564.3,2564.2,4.28988]
[1724934411967,0.00585457,2564.3,2564.2,45.08988]
[1724934412863,0.00585457,2564.3,2564.2,4.28988]
[1724934413466,0.00585457,2564.3,2564.2,45.08988]
[1724934414671,0.00585457,2564.3,2564.2,52.06459]
[1724934415057,0.0024,2564.4,2564.3,2.33923]
[1724934415259,0.0024,2564.4,2564.3,15.98083]
[1724934415460,0.0024,2564.4,2564.3,12.61083]
[1724934415768,0.0024,2564.4,2564.3,14.03147]
[1724934415957,0.0024,2564.4,2564.3,8.03147]
[1724934416363,0.0024,2564.4,2564.3,15.00615]
[1724934417770,0.0024,2564.4,2564.3,8.03147]
[1724934417974,0.0024,2564.4,2564.3,55.80615]
[1724934418271,0.0024,2564.4,2564.3,56.78083]
[1724934419357,0.0024,2564.4,2564.3,46.88083]
[1724934419565,0.0024,2564.4,2564.3,12.10755]
[1724934420257,0.0024,2564.4,2564.3,18.10755]
[1724934420462,0.0024,2564.4,2564.3,19.08223]
[1724934420772,0.0024,2564.4,2564.3,18.10755]
[1724934421066,0.0024,2564.4,2564.3,59.88223]
[1724934421262,0.0024,2564.4,2564.3,58.90755]
[1724934421866,0.0024,2564.4,2564.3,48.45987]
[1724934422057,0.0024,2564.4,2564.3,51.93187]
[1724934422468,0.0024,2564.4,2564.1,3.574]
[1724934422776,0.0024,2564.4,2564.3,3.75987]
[1724934423861,0.39225,2564.4,2564.3,3.37]
[1724934424966,4.29225,2564.4,2564.3,3.37]
[1724934425164,0.38988,2564.2,2564.1,3.37]
[1724934426070,0.38991,2564.0,2563.8,10.44074]
[1724934426372,0.7055,2563.9,2563.8,10.0508]
[1724934426870,0.7055,2563.9,2563.8,10.44074]
[1724934428375,0.7055,2563.9,2563.8,51.24074]
[1724934428573,0.3559,2564.1,2564.0,0.38991]
[1724934428774,0.3559,2564.1,2564.0,3.75991]
[1724934431373,0.7117,2564.3,2564.2,0.38988]
[1724934431881,1.10157,2564.3,2564.1,0.38989]
[1724934432082,0.38988,2564.2,2564.1,0.38989]
[1724934432480,0.7117,2564.3,2564.2,0.38988]
[1724934433185,1.10157,2564.3,2564.2,0.38988]
[1724934433372,0.7117,2564.3,2564.2,0.38988]
[1724934434379,1.10157,2564.3,2564.2,0.38988]
[1724934434779,0.38988,2564.2,2564.1,0.38989]
[1724934434972,0.3899,2564.1,2564.0,3.7599]
[1724934435772,4.2899,2564.1,2564.0,3.7599]
[1724934435972,0.38993,2563.9,2563.8,6.843]
[1724934436477,0.38993,2563.9,2563.8,7.23294]
[1724934436677,0.75463,2563.9,2563.8,7.23294]
[1724934438684,0.3647,2563.9,2563.8,7.23294]
[1724934439384,3.2078,2564.1,2564.0,0.38991]
[1724934439788,3.2078,2564.1,2564.0,3.75991]
[1724934440584,3.5977,2564.1,2564.0,3.75991]
[1724934440780,3.5977,2564.1,2564.0,0.38991]
[1724934441479,0.38993,2564.0,2563.9,0.38992]
[1724934441681,0.38993,2563.9,2563.8,7.23293]
[1724934441980,7.69424109,2564.1,2563.9,0.38992]
[1724934441981,0.38992,2564.0,2563.9,0.38992]
[1724934442473,8.08415109,2564.1,2564.0,0.38991]
[1724934442971,7.69424109,2564.1,2564.0,0.38991]
[1724934443178,8.08414109,2564.1,2564.0,0.38991]
[1724934444482,0.38994,2563.8,2563.7,4.58680457]
[1724934444685,0.38994,2563.8,2563.7,4.96650457]
[1724934444987,5.26561,2563.8,2563.7,4.19685457]
[1724934445479,5.26561,2563.8,2563.7,0.00585457]
[1724934445684,6.00371,2563.8,2563.7,0.00585457]
[1724934446492,0.97498,2563.5,2563.2,3.2078]
[1724934446689,0.39002,2563.3,2563.2,3.59783]
[1724934446879,0.39002,2563.3,2563.2,44.39783]
[1724934447281,4.67292,2563.3,2563.2,44.39783]
[1724934447480,0.77132,2563.3,2563.2,44.39783]
[1724934448294,4.67292,2563.3,2563.2,44.39783]
[1724934449575,4.67292,2563.3,2563.2,3.59783]
[1724934449781,0.77132,2563.3,2563.2,3.59783]
[1724934449983,4.29162,2563.3,2563.2,3.59783]
[1724934450178,0.39002,2563.3,2563.2,3.59783]
[1724934452793,0.39001,2563.4,2563.3,0.39002]
[1724934452982,0.39001,2563.4,2563.3,0.74532]
[1724934453180,2.54419598,2564.3,2563.3,10.2561]
[1724934453385,0.00581603,2564.6,2564.3,0.38986]
[1724934453587,0.00581603,2564.6,2564.5,3.37]
[1724934454090,7.7843801,2564.6,2564.5,3.75984]
[1724934454282,7.7843801,2564.6,2564.3,3.37585457]
[1724934454492,7.4828101,2564.6,2564.3,3.37585457]
[1724934454692,7.0929801,2564.6,2564.3,3.76571457]
[1724934455095,7.4828001,2564.6,2564.3,3.37585457]
[1724934455787,0.38985,2564.4,2564.3,0.00585457]
[1724934455990,3.9,2564.4,2564.3,0.00585457]
[1724934456187,8.11154555,2564.4,2564.3,0.00585457]
[1724934456792,0.00581603,2564.6,2564.3,6.58365457]
[1724934457090,4.46839038,2564.5,2564.3,3.37585457]
[1724934457292,4.46839038,2564.5,2564.3,0.00585457]
[1724934457492,4.85824038,2564.5,2564.3,0.00585457]
[1724934458188,4.46839038,2564.5,2564.4,3.75985]
[1724934458394,0.00581603,2564.6,2564.5,0.38984]
[1724934458586,0.00581603,2564.6,2564.5,8.27224]
[1724934458893,0.00581603,2564.6,2564.5,49.07224]
[1724934462697,3.2078,2565.3,2565.1,0.38974]
[1724934462993,3.2078,2565.3,2565.2,0.38973]
[1724934463199,0.38965,2565.8,2565.4,0.38969]
[1724934463399,4.28725,2565.8,2565.4,0.38969]
[1724934463583,4.18377792,2565.5,2565.4,0.38969]
[1724934463789,4.06930602,2565.7,2565.2,1.14393]
[1724934463983,0.38968,2565.6,2565.3,0.38971]
[1724934464195,4.56973245,2565.6,2565.3,0.3897]
[1724934464387,4.18005245,2565.6,2565.4,0.38969]
[1724934464794,8.07765245,2565.6,2565.4,0.38969]
[1724934465491,8.07765245,2565.6,2565.5,0.38969]
[1724934465492,4.18005245,2565.6,2565.5,0.38969]
[1724934465997,8.07765245,2565.6,2565.5,0.38969]
[1724934466891,4.18005245,2565.6,2565.5,0.38969]
[1724934467297,3.21365457,2565.7,2565.6,0.38967]
[1724934467591,3.21365457,2565.7,2565.3,4.34426]
[1724934467592,3.21365457,2565.7,2565.5,0.38968]
[1724934467798,3.21365457,2565.7,2565.6,0.38967]
[1724934468287,3.21365457,2565.7,2565.6,41.18967]
[1724934468490,3.21365457,2565.7,2565.6,0.38967]
[1724934469593,0.00585457,2565.7,2565.6,0.38967]
[1724934469791,0.00825457,2565.7,2565.6,0.38967]
[1724934470298,0.00825457,2565.7,2565.4,40.8]
[1724934470798,0.00825457,2565.7,2565.6,0.38967]
[1724934471393,0.00825457,2565.7,2565.6,3.75967]
[1724934474394,0.00825457,2565.7,2565.6,7.65727]
[1724934474603,0.00825457,2565.7,2565.6,3.75967]
[1724934474791,0.00825457,2565.7,2565.6,7.65727]
[1724934475298,4.88760286,2566.8,2566.6,0.38951]
[1724934475499,4.88760286,2566.8,2566.2,0.97393]
[1724934475500,0.97376,2566.7,2566.3,3.75956]
[1724934475695,0.3792,2566.6,2566.4,0.38955]
[1724934475891,1.50192,2566.6,2566.4,0.38955]
[1724934476094,0.38953,2566.5,2566.3,3.75955]
[1724934476306,4.43011335,2566.5,2566.3,3.37]
[1724934476514,4.81965335,2566.5,2566.3,3.75956]
[1724934477005,4.81965335,2566.5,2566.4,0.38955]
[1724934477006,4.43011335,2566.5,2566.4,0.38955]
[1724934477399,0.7332,2566.6,2566.5,0.38953]
[1724934477599,0.38953,2566.5,2566.4,0.38954]
[1724934477898,0.7332,2566.6,2566.5,0.38953]
[1724934478295,0.7332,2566.6,2566.3,3.37]
[1724934478296,1.12272,2566.6,2566.4,0.38954]
[1724934478496,1.12272,2566.6,2566.3,3.37]
[1724934478692,1.12272,2566.6,2566.4,0.38954]
[1724934479204,1.12272,2566.6,2566.3,3.37]
[1724934479406,1.12272,2566.6,2566.4,0.38954]
[1724934479803,0.38953,2566.5,2566.4,0.38954]
[1724934480003,0.38953,2566.5,2566.3,3.75955]
[1724934480303,0.38953,2566.5,2566.3,3.37]
[1724934480494,1.12273,2566.6,2566.4,0.38954]
[1724934480697,1.12272,2566.6,2566.3,3.37]
[1724934480897,1.12272,2566.6,2566.1,0.00585457]
[1724934480898,0.38958,2566.2,2566.1,3.37585457]
[1724934481095,2.33748,2566.2,2566.1,0.00585457]
[1724934481403,9.3352023,2566.2,2566.1,0.00585457]
[1724934482003,16.3091523,2566.2,2566.1,0.00585457]
[1724934482408,1.36364,2566.0,2565.9,3.37]
[1724934482605,3.2078,2566.0,2565.7,3.37]
[1724934482809,0.38964,2565.8,2565.7,3.37]
[1724934483503,0.00585457,2566.0,2565.9,0.38962]
[1724934483703,0.00585457,2566.0,2565.9,3.75962]
[1724934484604,0.00585457,2566.0,2565.9,3.37]
[1724934484605,0.39546457,2566.0,2565.9,3.37]
[1724934485304,0.00585457,2566.0,2565.9,3.75962]
[1724934485902,0.00585457,2566.0,2565.9,7.65642]
[1724934487310,0.00585457,2566.0,2565.9,3.75962]
[1724934489099,0.39546457,2566.0,2565.9,3.75962]
[1724934489308,0.00585457,2566.0,2565.9,3.75962]
[1724934490106,5.26629457,2566.0,2565.9,3.37]
[1724934490300,4.29226457,2566.0,2565.9,3.75962]
[1724934490502,0.00585457,2566.0,2565.9,3.75962]
[1724934490707,0.39546457,2566.0,2565.9,3.75962]
[1724934491515,0.39546457,2566.0,2565.9,3.37]
[1724934491712,0.00585457,2566.0,2565.9,3.75962]
[1724934492113,0.39546457,2566.0,2565.9,3.75962]
[1724934492408,0.39546457,2566.0,2565.9,3.37]
[1724934492608,0.39546457,2566.0,2565.9,3.75962]
[1724934493109,0.00585457,2566.0,2565.9,3.75962]
[1724934494003,0.39546457,2566.0,2565.9,3.75962]
[1724934494209,0.00585457,2566.0,2565.9,3.75962]
[1724934494817,0.39546457,2566.0,2565.9,3.37]
[1724934495813,0.38967,2565.7,2565.5,3.76553457]
[1724934496605,0.38965,2565.8,2565.6,0.38967]
[1724934496811,0.38963,2565.9,2565.8,3.37]
[1724934497010,0.38963,2565.9,2565.8,3.75964]
[1724934497011,4.26717974,2565.9,2565.8,3.75964]
[1724934497212,0.38962,2565.9,2565.8,3.37]
[1724934497414,4.28722,2565.9,2565.8,3.37]
[1724934497713,0.38962,2565.9,2565.8,3.37]
[1724934498215,4.28722,2565.9,2565.8,3.37]
[1724934498516,9.33792301,2565.9,2565.8,3.37]
[1724934499222,0.97411,2565.8,2565.6,3.37]
[1724934499409,0.38965,2565.7,2565.6,3.37]
[1724934500112,0.38965,2565.7,2565.6,3.75967]
[1724934500612,0.38965,2565.8,2565.6,3.75967]
[1724934500810,0.38965,2565.8,2565.7,3.37]
[1724934500811,0.38964,2565.8,2565.7,3.37]
[1724934501515,0.38964,2565.8,2565.5,0.00585457]
[1724934501516,4.87171,2565.8,2565.5,3.37585457]
[1724934501712,1.36385,2565.6,2565.5,0.00585457]
[1724934502114,0.97422,2565.5,2564.9,3.2078]
[1724934502313,0.38977,2565.0,2564.8,3.37]
[1724934502825,0.38977,2565.0,2564.8,3.75979]
[1724934503018,0.38977,2565.0,2564.8,3.37]
[1724934503516,0.38975,2565.1,2564.8,3.75978]
[1724934503818,4.45983022,2565.2,2565.0,3.37]
[1724934504021,4.45983022,2565.2,2564.6,3.21365457]
[1724934504022,4.07009022,2565.2,2564.6,3.21365457]
[1724934504219,4.18197,2565.7,2564.8,3.37]
[1724934504220,0.38975,2565.1,2564.8,3.37]